bitfinex-derivatives/quotes_SOLF0:USTF0_20251018
["timestamp","ask_amount","ask_price","bid_price","bid_amount"]
[1760762091933,4.8829,184.26,184.19,2.85]
[1760762092124,4.22578899,184.25,184.19,2.85]
[1760762092329,4.22679215,184.24,184.19,2.85]
[1760762092636,4.22679215,184.25,184.19,2.85]
[1760762092934,4.22679215,184.24,184.19,2.85]
[1760762093135,4.22679215,184.25,184.19,2.85]
[1760762093330,4.22679215,184.24,184.19,2.85]
[1760762093532,4.8829,184.26,184.19,2.85]
[1760762093733,4.22797521,184.25,184.19,2.85]
[1760762093940,4.22797521,184.24,184.19,2.85]
[1760762094237,4.8829,184.26,184.19,2.85]
[1760762094438,4.22939109,184.25,184.19,2.85]
[1760762094624,4.22939109,184.24,184.19,2.85]
[1760762094829,4.8829,184.26,184.19,2.85]
[1760762095026,4.22939109,184.25,184.19,2.85]
[1760762095236,4.22939109,184.24,184.19,2.85]
[1760762095434,4.8829,184.26,184.19,2.85]
[1760762095734,4.23112587,184.25,184.19,2.85]
[1760762095934,4.23112587,184.24,184.19,2.85]
[1760762096136,4.8829,184.26,184.19,2.85]
[1760762096433,4.22953041,184.25,184.19,2.85]
[1760762096637,4.22953041,184.24,184.19,2.85]
[1760762096838,4.22953041,184.23,184.19,2.85]
[1760762097140,4.8832,184.25,184.19,2.85]
[1760762097333,4.23151677,184.24,184.2,2.85]
[1760762097531,4.23151677,184.23,184.2,2.85]
[1760762097732,4.8832,184.25,184.19,2.85]
[1760762098040,4.23265162,184.24,184.19,2.85]
[1760762098337,4.23265162,184.23,184.19,2.85]
[1760762098538,4.23265162,184.22,184.19,2.85]
[1760762098838,4.8832,184.25,184.19,2.85]
[1760762099140,4.23556013,184.24,184.18,4.8846]
[1760762099438,4.23556013,184.23,184.19,2.85]
[1760762099638,4.23556013,184.22,184.18,4.8846]
[1760762099841,4.8832,184.25,184.19,2.85]
[1760762100134,4.23671642,184.24,184.19,2.85]
[1760762100329,4.23671642,184.23,184.18,4.8846]
[1760762100532,4.23671642,184.22,184.19,2.85]
[1760762100736,4.8832,184.25,184.19,2.85]
[1760762100940,4.23879538,184.24,184.19,2.85]
[1760762101144,4.23879538,184.23,184.19,2.85]
[1760762101440,4.23879538,184.22,184.18,4.8846]
[1760762101641,4.8832,184.25,184.18,4.8846]
[1760762101642,4.8832,184.25,184.19,2.85]
[1760762101938,4.23874304,184.24,184.19,2.85]
[1760762102135,4.23874304,184.23,184.18,4.8846]
[1760762102337,4.23874304,184.22,184.18,4.8846]
[1760762102531,4.23874304,184.21,184.19,2.85]
[1760762102735,4.8832,184.25,184.19,2.85]
[1760762102942,4.23849211,184.24,184.18,4.8846]
[1760762103142,4.23849211,184.23,184.19,2.85]
[1760762103337,4.8832,184.25,184.2,2.85]
[1760762103338,4.23849211,184.22,184.2,2.85]
[1760762103641,4.23849211,184.21,184.17,2.85]
[1760762103836,4.23849211,184.2,184.17,2.86]
[1760762104039,4.8834,184.24,184.17,2.86]
[1760762104240,4.23708839,184.23,184.17,2.86]
[1760762104538,4.23708839,184.22,184.16,4.8853]
[1760762104740,4.23708839,184.21,184.17,2.86]
[1760762105041,4.23708839,184.2,184.17,2.86]
[1760762105241,4.8834,184.24,184.17,2.86]
[1760762105541,9.1211515,184.23,184.17,2.86]
[1760762105739,4.2374515,184.22,184.17,2.86]
[1760762105946,4.2374515,184.21,184.15,2.86]
[1760762106144,4.2374515,184.2,184.14,4.8858]
[1760762106344,4.8837,184.23,184.15,2.86]
[1760762106545,4.23675171,184.22,184.15,2.86]
[1760762106745,4.23675171,184.21,184.15,2.86]
[1760762106940,4.23675171,184.2,184.16,2.86]
[1760762107237,4.8837,184.23,184.15,2.86]
[1760762107445,4.23656216,184.22,184.15,2.86]
[1760762107643,4.23656216,184.21,184.15,2.86]
[1760762107839,4.23656216,184.2,184.15,2.86]
[1760762108046,4.883,184.25,184.11,2.86]
[1760762108248,4.23762651,184.24,184.11,2.86]
[1760762108441,4.23762651,184.23,184.11,2.86]
[1760762108635,4.23762651,184.22,184.11,2.86]
[1760762108840,4.23762651,184.21,184.11,2.86]
[1760762109046,4.883,184.25,184.17,2.86]
[1760762109245,4.23780074,184.24,184.17,2.86]
[1760762109437,4.23780074,184.23,184.17,2.86]
[1760762109743,4.23780074,184.22,184.11,2.86]
[1760762110049,4.23780074,184.21,184.11,2.86]
[1760762110344,4.8834,184.24,184.11,2.86]
[1760762110546,4.23757853,184.23,184.11,2.86]
[1760762110748,4.23757853,184.22,184.11,2.86]
[1760762110936,4.23757853,184.21,184.14,4.8858]
[1760762111136,4.23757853,184.2,184.15,2.69]
[1760762111345,4.8834,184.24,184.15,2.69]
[1760762111540,4.2375759,184.23,184.15,2.69]
[1760762111741,4.2375759,184.22,184.15,2.69]
[1760762112044,4.2375759,184.21,184.15,2.69]
[1760762112347,4.8834,184.24,184.15,2.69]
[1760762112548,4.23714226,184.23,184.15,2.69]
[1760762112748,4.23714226,184.22,184.15,2.69]
[1760762112937,4.23714226,184.21,184.15,2.69]
[1760762113143,4.8834,184.24,184.15,2.69]
[1760762113342,4.23676411,184.23,184.15,2.69]
[1760762113543,4.23676411,184.22,184.15,2.69]
[1760762113740,4.23676411,184.21,184.15,2.69]
[1760762113943,4.8834,184.24,184.15,2.69]
[1760762114143,4.23672768,184.23,184.15,2.69]
[1760762114349,4.23672768,184.22,184.16,2.69]
[1760762114545,4.23672768,184.21,184.16,2.69]
[1760762114852,4.8834,184.24,184.16,2.69]
[1760762115148,4.23672947,184.23,184.17,2.69]
[1760762115352,4.23672947,184.22,184.17,2.69]
[1760762115650,4.23672947,184.21,184.17,2.69]
[1760762115849,4.8834,184.24,184.17,2.69]
[1760762116051,4.23747617,184.23,184.17,2.69]
[1760762116353,4.23747617,184.22,184.17,2.69]
[1760762116554,4.23747617,184.21,184.17,2.69]
[1760762116852,4.8834,184.24,184.17,2.69]
[1760762117049,4.2375895,184.23,184.17,2.69]
[1760762117251,4.2375895,184.22,184.17,2.69]
[1760762117548,4.2375895,184.21,184.17,2.69]
[1760762117855,4.8834,184.24,184.17,2.69]
[1760762118050,4.23872338,184.23,184.17,2.69]
[1760762118246,4.2386253,184.22,184.16,4.8852]
[1760762118447,4.2386253,184.21,184.17,2.69]
[1760762118653,4.8834,184.24,184.17,2.69]
[1760762118852,4.23853106,184.23,184.17,2.69]
[1760762119045,4.23853106,184.22,184.17,2.69]
[1760762119241,4.23853106,184.21,184.17,2.69]
[1760762119446,4.8834,184.24,184.17,2.69]
[1760762119749,4.23863508,184.23,184.17,2.69]
[1760762119953,4.23863508,184.22,184.17,2.69]
[1760762120248,4.8834,184.24,184.17,2.69]
[1760762120450,4.23850625,184.23,184.18,2.69]
[1760762120754,4.8828,184.26,184.18,2.69]
[1760762120941,4.23868693,184.25,184.18,2.69]
[1760762121141,4.23868693,184.24,184.18,2.69]
[1760762121352,4.23868693,184.23,184.18,2.69]
[1760762121543,4.8828,184.26,184.18,2.69]
[1760762121748,4.23840741,184.25,184.18,2.69]
[1760762121946,4.23840741,184.24,184.18,2.69]
[1760762122151,4.23840741,184.23,184.15,2.69]
[1760762122346,4.23840741,184.22,184.15,2.69]
[1760762122652,4.23840741,184.21,184.15,2.69]
[1760762122853,4.23840741,184.2,184.14,4.8857]
[1760762123053,4.884,184.22,184.15,2.69]
[1760762123352,4.23725524,184.21,184.15,2.69]
[1760762123544,4.23725524,184.2,184.15,2.69]
[1760762123745,4.884,184.22,184.15,2.69]
[1760762123946,4.23716217,184.21,184.15,2.69]
[1760762124151,2.09413592,184.23,184.16,2.69]
[1760762124352,4.23785084,184.22,184.16,2.69]
[1760762124644,2.09413592,184.27,184.16,2.69]
[1760762124844,4.23825319,184.26,184.16,2.69]
[1760762125048,4.23825319,184.25,184.18,4.8846]
[1760762125244,4.23825319,184.24,184.18,4.8846]
[1760762125560,4.2377699,184.23,184.19,2.69]
[1760762125748,6.97673592,184.27,184.19,2.69]
[1760762125949,4.23779162,184.26,184.19,2.69]
[1760762126154,4.23779162,184.25,184.19,2.69]
[1760762126355,4.23779162,184.24,184.18,4.8846]
[1760762126654,6.97673592,184.27,184.18,4.8846]
[1760762126853,4.25864359,184.26,184.19,2.69]
[1760762127054,4.25864359,184.25,184.19,2.69]
[1760762127253,4.25864359,184.24,184.19,2.69]
[1760762127452,6.97673592,184.27,184.19,2.69]
[1760762127649,4.25824934,184.26,184.2,2.69]
[1760762127853,4.25824934,184.25,184.2,2.69]
[1760762128058,4.25824934,184.24,184.2,2.69]
[1760762128257,2.09413592,184.27,184.21,2.69]
[1760762128457,2.09413592,184.27,184.2,2.69]
[1760762128458,4.25761375,184.26,184.2,2.69]
[1760762128656,4.25761375,184.25,184.2,2.69]
[1760762128855,2.09413592,184.27,184.2,2.69]
[1760762129055,4.25758751,184.26,184.2,2.69]
[1760762129355,4.25758751,184.26,184.19,4.8844]
[1760762129356,4.25758751,184.25,184.19,4.8844]
[1760762129558,2.09413592,184.27,184.2,2.69]
[1760762129759,4.25670653,184.26,184.2,2.69]
[1760762130052,4.25670653,184.25,184.2,2.69]
[1760762130258,2.09413592,184.27,184.2,2.69]
[1760762130452,4.25617965,184.26,184.2,2.69]
[1760762130656,4.25617965,184.25,184.2,2.69]
[1760762130857,2.09413592,184.27,184.2,2.69]
[1760762131060,4.25616918,184.26,184.2,2.69]
[1760762131252,4.25616918,184.25,184.2,2.69]
[1760762131455,4.8823,184.28,184.2,2.69]
[1760762131649,4.25578179,184.27,184.2,2.69]
[1760762131858,4.25578179,184.26,184.21,2.69]
[1760762132056,26.33990796,184.3,184.21,2.69]
[1760762132359,4.25599228,184.29,184.21,2.69]
[1760762132558,4.25599228,184.28,184.21,2.69]
[1760762132756,4.25599228,184.27,184.21,2.69]
[1760762132954,4.25599228,184.26,184.2,4.8841]
[1760762133154,26.33990796,184.3,184.21,2.69]
[1760762133458,4.25419014,184.29,184.21,2.69]
[1760762133658,4.25419014,184.28,184.21,2.69]
[1760762133859,4.25419014,184.27,184.21,2.69]
[1760762134057,4.25419014,184.26,184.2,4.8841]
[1760762134256,26.33990796,184.3,184.21,2.69]
[1760762134459,4.25368775,184.29,184.21,2.69]
[1760762134757,4.25368775,184.28,184.15,2.69]
[1760762134958,4.25368775,184.27,184.15,2.69]
[1760762135164,7.14112875,184.31,184.15,2.69]
[1760762135356,4.2530869,184.3,184.15,2.69]
[1760762135555,4.2530869,184.29,184.16,2.69]
[1760762135754,4.2530869,184.28,184.16,2.69]
[1760762135955,4.2530869,184.27,184.22,4.8836]
[1760762136261,12.02272875,184.31,184.23,2.69]
[1760762136262,6.97573592,184.31,184.23,2.69]
[1760762136451,4.25230533,184.3,184.23,2.69]
[1760762136655,4.25230533,184.29,184.23,2.69]
[1760762136855,4.25230533,184.28,184.23,2.69]
[1760762137058,4.25230533,184.27,184.23,2.69]
[1760762137363,4.25156985,184.26,184.2,7.5742]
[1760762137662,5.04699283,184.3,184.2,7.5742]
[1760762137963,4.25156985,184.29,184.2,7.5742]
[1760762138163,4.25156985,184.28,184.2,7.5742]
[1760762138360,4.25156985,184.27,184.2,7.5742]
[1760762138561,4.25156985,184.26,184.2,7.5742]
[1760762138761,4.8821,184.29,184.2,7.5742]
[1760762138956,4.25109055,184.28,184.2,7.5742]
[1760762139156,4.25109055,184.27,184.2,7.5742]
[1760762139361,4.25109055,184.26,184.2,7.5742]
[1760762139657,5.04699283,184.3,184.21,7.5738]
[1760762139958,4.25101129,184.29,184.22,2.69]
[1760762140157,4.25101129,184.28,184.22,2.69]
[1760762140358,4.25101129,184.27,184.21,4.8838]
[1760762140560,28.11733901,184.31,184.22,2.69]
[1760762140759,4.25068377,184.3,184.22,2.69]
[1760762141058,4.25068377,184.29,184.22,2.69]
[1760762141255,4.25068377,184.28,184.22,2.69]
[1760762141465,4.25068377,184.27,184.22,2.77]
[1760762141666,28.11733901,184.31,184.22,2.77]
[1760762141969,4.25042436,184.3,184.22,2.77]
[1760762142261,4.25042436,184.29,184.22,2.77]
[1760762142466,4.25042436,184.28,184.22,7.6536]
[1760762142659,23.07034618,184.31,184.22,7.6536]
[1760762142660,4.25042436,184.27,184.23,2.77]
[1760762142859,23.07034618,184.31,184.23,2.77]
[1760762143060,4.25006651,184.3,184.23,2.77]
[1760762143263,4.25006651,184.29,184.23,2.77]
[1760762143463,4.25006651,184.28,184.25,2.77]
[1760762143656,4.25006651,184.27,184.25,2.77]
[1760762143859,6.97563592,184.31,184.15,2.77]
[1760762144161,4.24995587,184.3,184.24,2.77]
[1760762144365,4.24995587,184.29,184.24,2.77]
[1760762144566,4.24995587,184.28,184.25,2.77]
[1760762144766,4.24995587,184.27,184.24,2.77]
[1760762144969,6.97563592,184.31,184.24,2.77]
[1760762145267,4.24966852,184.3,184.24,2.77]
[1760762145470,4.24966852,184.29,184.25,2.77]
[1760762145667,4.24966852,184.28,184.23,4.8833]
[1760762145862,4.24966852,184.27,184.24,2.77]
[1760762146065,6.97563592,184.31,184.24,2.77]
[1760762146264,4.25016964,184.3,184.24,2.77]
[1760762146471,4.25016964,184.29,184.23,4.8833]
[1760762146763,4.25016964,184.28,184.24,2.77]
[1760762146968,6.97563592,184.31,184.24,2.77]
[1760762147170,4.25080694,184.3,184.24,2.77]
[1760762147363,4.25080694,184.29,184.25,2.77]
[1760762147558,4.25080694,184.28,184.24,2.77]
[1760762147760,6.97563592,184.31,184.24,2.77]
[1760762147965,4.2504489,184.3,184.24,2.77]
[1760762148173,4.2504489,184.29,184.23,4.8833]
[1760762148374,4.2504489,184.28,184.24,2.77]
[1760762148572,6.97563592,184.31,184.24,2.77]
[1760762148870,4.24920564,184.3,184.24,2.77]
[1760762149070,4.24920564,184.29,184.23,4.8833]
[1760762149270,4.24920564,184.28,184.24,2.77]
[1760762149578,1.33946497,184.3,184.24,2.77]
[1760762149778,4.24825638,184.29,184.19,2.77]
[1760762149979,1.33946497,184.3,184.19,2.77]
[1760762150168,4.2483127,184.29,184.25,4.8827]
[1760762150373,1.33946497,184.3,184.26,2.77]
[1760762150672,4.24815064,184.29,184.26,2.77]
[1760762150879,1.33946497,184.3,184.25,4.8827]
[1760762151078,4.24815064,184.29,184.27,2.77]
[1760762151379,1.33946497,184.3,184.25,4.8827]
[1760762151774,1.33946497,184.3,184.27,2.77]
[1760762152387,1.33946497,184.28,184.16,2.77]
[1760762152572,4.24775433,184.27,184.16,2.77]
[1760762152777,1.33946497,184.28,184.16,2.77]
[1760762152980,4.24727135,184.27,184.19,4.8845]
[1760762153180,1.33946497,184.28,184.2,2.77]
[1760762153376,4.24763022,184.27,184.2,2.77]
[1760762153580,1.33946497,184.28,184.2,2.77]
[1760762153780,4.24763022,184.27,184.2,2.77]
[1760762153985,1.33946497,184.28,184.2,2.77]
[1760762154185,4.24763022,184.27,184.2,2.77]
[1760762154384,1.33946497,184.28,184.2,2.77]
[1760762154582,4.24780203,184.27,184.2,2.77]
[1760762154777,1.33946497,184.28,184.2,2.77]
[1760762154984,4.24780203,184.27,184.2,7.6541]
[1760762155185,1.33946497,184.25,184.13,1.33946497]
[1760762155386,1.33946497,184.25,184.14,2.77]
[1760762155685,1.33946497,184.25,184.19,4.8844]
[1760762156086,1.33946497,184.25,184.2,2.77]
[1760762156386,1.33946497,184.25,184.21,2.77]
[1760762158290,1.33946497,184.25,184.2,4.8841]
[1760762158489,1.33946497,184.25,184.22,2.77]
[1760762158882,1.33946497,184.25,184.2,4.8841]
[1760762159078,1.33946497,184.25,184.21,2.77]
[1760762159283,1.33946497,184.25,184.22,2.77]
[1760762159684,1.33946497,184.25,184.21,2.77]
[1760762160080,1.33946497,184.25,184.2,4.8841]
[1760762160081,1.33946497,184.25,184.22,2.77]
[1760762160885,1.33946497,184.25,184.2,4.8841]
[1760762160886,1.33946497,184.25,184.21,2.77]
[1760762161091,1.33946497,184.25,184.22,2.77]
[1760762161680,1.33946497,184.25,184.2,4.8841]
[1760762161880,1.33946497,184.25,184.21,2.77]
[1760762162585,1.33946497,184.25,184.22,2.77]
[1760762162890,1.33946497,184.25,184.21,2.77]
[1760762163586,1.33946497,184.25,184.2,4.8841]
[1760762163794,1.33946497,184.25,184.21,2.7]
[1760762164494,1.33946497,184.25,184.18,4.8847]
[1760762164691,1.33946497,184.25,184.19,2.7]
[1760762164889,5.02895908,184.32,184.2,2.7]
[1760762164890,4.23342664,184.27,184.2,2.7]
[1760762165195,5.04699283,184.31,184.21,2.7]
[1760762165196,1.33946497,184.31,184.21,2.7]
[1760762165397,1.33946497,184.28,184.21,2.7]
[1760762165693,4.23373306,184.27,184.21,2.7]
[1760762165996,1.33946497,184.28,184.21,2.7]
[1760762166295,4.23300419,184.27,184.21,2.7]
[1760762166594,4.23300419,184.26,184.21,2.7]
[1760762166888,1.33946497,184.28,184.21,2.7]
[1760762167094,4.23320547,184.27,184.21,2.7]
[1760762167295,4.23320547,184.26,184.19,2.7]
[1760762167494,1.33946497,184.28,184.19,2.7]
[1760762167694,4.23438757,184.27,184.19,2.7]
[1760762167991,4.23438757,184.26,184.19,2.7]
[1760762168188,1.33946497,184.28,184.19,2.7]
[1760762168390,4.2360989,184.27,184.19,2.7]
[1760762168592,4.2360989,184.26,184.19,2.7]
[1760762168895,1.33946497,184.28,184.19,2.7]
[1760762169096,4.23589886,184.27,184.19,2.7]
[1760762169296,4.23589886,184.26,184.19,2.7]
[1760762169494,4.23589886,184.25,184.19,2.7]
[1760762169690,1.33946497,184.28,184.19,2.7]
[1760762169899,4.23725088,184.27,184.19,2.7]
[1760762170098,4.23725088,184.26,184.19,2.7]
[1760762170293,4.23725088,184.25,184.19,2.7]
[1760762170597,1.33946497,184.28,184.19,2.7]
[1760762170800,4.23808999,184.27,184.19,2.7]
[1760762170999,4.23808999,184.26,184.19,2.7]
[1760762171192,4.23808999,184.25,184.19,2.7]
[1760762171400,4.8824,184.27,184.19,2.7]
[1760762171701,1.33946497,184.25,184.19,2.7]
[1760762171898,4.23851429,184.24,184.19,2.7]
[1760762172088,4.23851429,184.23,184.19,2.7]
[1760762172292,4.23851429,184.22,184.15,2.89]
[1760762172492,6.22256497,184.25,184.15,2.89]
[1760762172689,4.23701342,184.24,184.15,2.89]
[1760762172895,4.23701342,184.23,184.15,2.89]
[1760762173101,4.23701342,184.22,184.15,2.89]
[1760762173290,1.33946497,184.22,184.15,2.89]
[1760762173494,1.33946497,184.19,184.11,2.89]
[1760762173690,4.23538886,184.18,184.11,2.89]
[1760762173994,1.33946497,184.16,184.07,1.33946497]
[1760762174296,1.33946497,184.16,184.08,2.89]
[1760762174496,4.23015821,184.15,184.08,2.89]
[1760762174699,4.23015821,184.14,184.08,2.89]
[1760762175001,1.33946497,184.16,184.08,2.89]
[1760762175203,4.23060581,184.15,184.08,2.89]
[1760762176001,4.23060581,184.15,184.03,1.33946497]
[1760762176002,1.33946497,184.13,184.04,2.89]
[1760762176302,1.33946497,184.16,184.04,2.89]
[1760762176503,1.33946497,184.19,184.08,4.8874]
[1760762176701,4.22118712,184.18,184.09,2.89]
[1760762176897,4.22118712,184.18,184.1,2.89]
[1760762177094,4.22118712,184.2,184.1,4.8869]
[1760762177300,9.10538712,184.21,184.11,2.89]
[1760762177605,9.10538712,184.21,184.13,2.89]
[1760762178305,4.8842,184.21,184.13,2.89]
[1760762178894,4.8845,184.2,184.08,49.8474]
[1760762179102,4.8845,184.2,184.11,2.89]
[1760762179301,9.1043961,184.2,184.11,2.89]
[1760762179503,5.55936107,184.19,184.11,2.89]
[1760762179699,1.33946497,184.19,184.11,2.89]
[1760762181008,4.8848,184.18,184.11,2.89]
[1760762182499,4.8861,184.14,184.05,2.89]
[1760762182700,1.33946497,184.13,184.05,2.89]
[1760762185411,4.8864,184.12,184.05,2.89]
[1760762185705,1.33946497,184.1,184.05,2.89]
[1760762186306,1.33946497,184.1,184.01,2.89]
[1760762187909,1.33946497,184.07,184.01,2.89]
[1760762189605,4.8874,184.09,184.01,2.89]
[1760762199714,4.8876,184.08,184.01,2.89]
[1760762200214,4.8882,184.06,183.95,4.8906]
[1760762200417,4.8882,184.06,183.96,2.89]
[1760762201619,4.8882,184.06,183.97,2.61]
[1760762206219,1.33946497,184.1,183.99,1.33946497]
[1760762206422,1.33946497,184.1,184.0,2.61]
[1760762207220,6.22646497,184.1,184.0,7.4993]
[1760762207422,6.22646497,184.1,184.01,2.61]
[1760762209420,4.887,184.1,184.01,2.61]
[1760762212823,2.09731867,184.07,183.96,2.61]
[1760762214131,4.8884,184.05,183.96,2.61]
[1760762218735,9.0983094,184.05,183.96,2.61]
[1760762218936,4.8884,184.05,183.96,2.61]
[1760762220139,9.09850039,184.05,183.96,2.61]
[1760762220343,4.8884,184.05,183.96,2.61]
[1760762220545,4.8888,184.03,183.96,2.61]
[1760762221844,9.09696517,184.03,183.96,2.61]
[1760762222048,4.8888,184.03,183.96,2.61]
[1760762222341,4.8883,184.05,183.96,2.61]
[1760762222739,16.21356087,184.05,183.96,2.61]
[1760762222939,4.20983493,184.04,183.96,2.61]
[1760762223140,4.8891,184.02,183.96,2.61]
[1760762225440,4.8895,184.01,183.92,2.73]
[1760762225642,4.8895,184.01,183.93,2.73]
[1760762227448,4.8897,184.0,183.93,2.73]
[1760762229843,2.09731867,184.03,183.9,2.73]
[1760762230049,4.21551934,184.02,183.9,2.73]
[1760762230351,4.21551934,184.01,183.9,2.73]
[1760762230553,2.09731867,183.99,183.9,2.73]
[1760762230744,4.21551934,183.98,183.9,2.73]
[1760762230947,4.21551934,183.97,183.9,2.73]
[1760762231243,2.09731867,183.99,183.9,2.73]
[1760762231546,4.28695491,183.98,183.9,2.73]
[1760762231748,4.28695491,183.97,183.9,2.73]
[1760762231948,4.28713351,183.98,183.9,2.73]
[1760762232150,2.09731867,183.99,183.9,2.73]
[1760762232351,6.38293344,183.99,183.92,2.79]
[1760762232548,2.09731867,183.99,183.92,2.79]
[1760762233953,11.27293344,183.99,183.92,2.79]
[1760762234144,6.98731867,183.99,183.92,2.79]
[1760762235348,4.89,183.99,183.92,2.79]
[1760762237642,2.09731867,184.03,183.92,2.79]
[1760762237643,4.8894,184.01,183.92,2.79]
[1760762238354,4.28186597,184.04,183.93,2.79]
[1760762238553,4.28186597,184.06,183.93,2.79]
[1760762238753,2.09731867,184.07,183.93,2.79]
[1760762238754,4.28186597,184.05,183.93,2.79]
[1760762239052,2.09731867,184.07,183.93,2.79]
[1760762239053,4.28186597,184.06,183.93,2.79]
[1760762239255,4.8887,184.04,183.96,2.79]
[1760762240151,9.17352827,184.04,183.96,2.79]
[1760762240353,4.8887,184.04,183.96,2.79]
[1760762241955,4.28601056,184.05,183.97,2.79]
[1760762242959,4.28601056,184.04,183.89,2.79]
[1760762243259,4.28601056,184.03,183.89,2.79]
[1760762243465,4.28601056,184.02,183.89,2.79]
[1760762243658,4.28601056,184.01,183.89,2.79]
[1760762243961,4.28601056,184.0,183.89,2.79]
[1760762244157,4.28601056,184.02,183.89,2.79]
[1760762244461,4.28601056,184.01,183.89,2.79]
[1760762244661,4.28601056,184.0,183.89,2.79]
[1760762244862,4.28601056,184.02,183.89,2.79]
[1760762245059,4.89,183.99,183.9,4.8922]
[1760762245252,4.89,183.99,183.91,2.79]
[1760762248461,4.8903,183.98,183.91,2.79]
[1760762251764,4.8905,183.97,183.91,2.79]
[1760762252363,4.8908,183.96,183.88,105.61993244]
[1760762252562,4.8908,183.96,183.89,2.79]
[1760762256860,4.8911,183.95,183.89,2.79]
[1760762258571,4.8916,183.93,183.89,2.79]
[1760762258974,4.8916,183.93,183.87,2.79]
[1760762261270,4.891,183.95,183.87,2.79]
[1760762271276,4.891,183.95,183.78,2.79]
[1760762271277,4.29172559,183.94,183.78,2.79]
[1760762271482,1.3452129,183.91,183.8,2.79]
[1760762271681,6.2372129,183.91,183.8,2.79]
[1760762273280,1.3452129,183.88,183.77,2.79]
[1760762274479,4.8934,183.86,183.77,2.79]
[1760762275984,4.36331726,183.87,183.78,2.79]
[1760762276282,6.2380129,183.88,183.78,2.79]
[1760762277277,1.3452129,183.88,183.78,2.79]
[1760762277487,4.8933,183.87,183.78,2.79]
[1760762277682,1.3452129,183.85,183.78,2.79]
[1760762281093,1.3452129,183.89,183.8,2.79]
[1760762283091,1.3452129,183.89,183.81,2.79]
[1760762284290,4.8925,183.9,183.83,2.8]
[1760762284889,5.04699283,183.96,183.85,2.8]
[1760762284890,1.3452129,183.95,183.85,2.8]
[1760762285094,4.42360577,183.94,183.85,2.8]
[1760762285388,4.42360577,183.93,183.85,2.8]
[1760762285594,4.42360577,183.94,183.85,2.8]
[1760762285796,4.42360577,183.93,183.85,2.8]
[1760762285988,9.31500577,183.94,183.85,2.8]
[1760762286191,4.42360577,183.93,183.85,2.8]
[1760762286601,4.42360577,183.93,183.86,1.3452129]
[1760762286792,4.42360577,183.93,183.87,2.8]
[1760762287091,4.42360577,183.93,183.89,2.8]
[1760762287296,4.8914,183.94,183.89,2.8]
[1760762287495,4.4285598,183.93,183.89,2.8]
[1760762287692,5.04699283,183.97,183.89,2.8]
[1760762287693,4.8907,183.96,183.89,2.8]
[1760762287892,4.8907,183.96,183.9,1.3452129]
[1760762287893,4.42778638,183.95,183.9,1.3452129]
[1760762288095,4.8907,183.96,183.9,4.1452129]
[1760762288287,4.8907,183.96,183.9,1.3452129]
[1760762288288,4.4278535,183.95,183.9,1.3452129]
[1760762288490,4.4278535,183.95,183.91,2.8]
[1760762288687,4.4278535,183.95,183.9,1.3452129]
[1760762288892,4.4278535,183.97,183.93,2.8]
[1760762289090,4.42705795,183.96,183.91,4.1452129]
[1760762289290,4.8901,183.98,183.91,2.8]
[1760762289495,4.42781618,183.97,183.89,1.3452129]
[1760762289686,4.42781618,183.96,183.89,1.3452129]
[1760762289886,1.3452129,183.99,183.89,1.3452129]
[1760762290094,4.42778888,183.98,183.89,1.3452129]
[1760762290290,4.42778888,183.97,183.89,1.3452129]